[Event "Deloitte NK 2021 Vrouwen"]
[Site "Hoogeveen, Netherlands"]
[Date "2021.10.20"]
[Round "4.1"]
[White "Van Foreest, Machteld"]
[Black "Lanchava, Tea"]
[Result "0-1"]
[TimeControl "90min/40moves + 30min + 30sec/move"]
[WhiteElo "2132"]
[BlackElo "2214"]

1. e4 {[%clk 01:30:57]} {[%emt 00:00:03]} g6 {[%clk 01:30:51]} {[%emt
00:00:09]} 2. d4 {[%clk 01:31:05]} {[%emt 00:00:22]} Bg7 {[%clk 01:31:06]}
{[%emt 00:00:14]} 3. Nc3 {[%clk 01:31:30]} {[%emt 00:00:05]} a6 {[%clk
01:30:29]} {[%emt 00:01:08]} 4. Nf3 {[%clk 01:20:37]} {[%emt 00:11:23]} b5
{[%clk 01:28:58]} {[%emt 00:02:01]} 5. a3 {[%clk 01:06:47]} {[%emt 00:14:20]}
d6 {[%clk 01:28:58]} {[%emt 00:00:29]} 6. Be3 {[%clk 01:05:13]} {[%emt
00:02:04]} Bb7 {[%clk 01:28:05]} {[%emt 00:01:23]} 7. Qd3 {[%clk 00:59:29]}
{[%emt 00:06:14]} Nd7 {[%clk 01:24:28]} {[%emt 00:04:07]} 8. Be2 {[%clk
00:56:18]} {[%emt 00:03:42]} Rc8 {[%clk 01:19:46]} {[%emt 00:05:11]} 9. O-O
{[%clk 00:54:27]} {[%emt 00:02:22]} c5 {[%clk 01:17:56]} {[%emt 00:02:20]} 10.
Rfe1 {[%clk 00:48:50]} {[%emt 00:06:06]} c4 {[%clk 00:56:13]} {[%emt 00:22:13]}
11. Qd2 {[%clk 00:47:59]} {[%emt 00:01:21]} e6 {[%clk 00:53:53]} {[%emt
00:02:51]} 12. Rad1 {[%clk 00:37:54]} {[%emt 00:10:35]} Ne7 {[%clk 00:41:09]}
{[%emt 00:13:14]} 13. Bf4 {[%clk 00:31:44]} {[%emt 00:06:39]} Qb6 {[%clk
00:38:41]} {[%emt 00:02:57]} 14. e5 {[%clk 00:31:20]} {[%emt 00:00:55]} d5
{[%clk 00:35:44]} {[%emt 00:03:27]} 15. Bg5 {[%clk 00:29:18]} {[%emt 00:02:32]}
h6 {[%clk 00:35:21]} {[%emt 00:00:54]} 16. Bxe7 {[%clk 00:25:24]} {[%emt
00:04:23]} Kxe7 {[%clk 00:35:44]} {[%emt 00:00:06]} 17. h4 {[%clk 00:24:45]}
{[%emt 00:01:09]} Kd8 {[%clk 00:34:33]} {[%emt 00:01:41]} 18. Ra1 {[%clk
00:22:29]} {[%emt 00:02:47]} Bf8 {[%clk 00:30:00]} {[%emt 00:05:03]} 19. Qf4
{[%clk 00:21:28]} {[%emt 00:01:30]} Rh7 {[%clk 00:29:20]} {[%emt 00:01:10]} 20.
a4 {[%clk 00:21:06]} {[%emt 00:00:53]} b4 {[%clk 00:29:19]} {[%emt 00:00:32]}
21. a5 {[%clk 00:21:32]} {[%emt 00:00:03]} Qc7 {[%clk 00:25:38]} {[%emt
00:04:10]} 22. Nd1 {[%clk 00:17:39]} {[%emt 00:04:23]} Be7 {[%clk 00:18:42]}
{[%emt 00:07:27]} 23. Qg3 {[%clk 00:15:37]} {[%emt 00:02:31]} Nb8 {[%clk
00:16:09]} {[%emt 00:03:03]} 24. Ne3 {[%clk 00:15:16]} {[%emt 00:00:51]} Kd7
{[%clk 00:15:47]} {[%emt 00:00:53]} 25. Rad1 {[%clk 00:10:47]} {[%emt
00:04:59]} Qxa5 {[%clk 00:14:54]} {[%emt 00:01:23]} 26. Qg4 {[%clk 00:10:03]}
{[%emt 00:01:13]} Ke8 {[%clk 00:13:16]} {[%emt 00:02:09]} 27. h5 {[%clk
00:07:49]} {[%emt 00:02:44]} g5 {[%clk 00:11:06]} {[%emt 00:02:40]} 28. Kh1
{[%clk 00:06:52]} {[%emt 00:01:27]} Nd7 {[%clk 00:10:13]} {[%emt 00:01:22]} 29.
Nh2 {[%clk 00:06:30]} {[%emt 00:00:53]} Qb6 {[%clk 00:09:54]} {[%emt 00:00:49]}
30. c3 {[%clk 00:06:11]} {[%emt 00:00:50]} f5 {[%clk 00:08:39]} {[%emt
00:01:44]} 31. exf6 {[%clk 00:05:33]} {[%emt 00:01:08]} Nxf6 {[%clk 00:09:04]}
{[%emt 00:00:05]} 32. Qh3 {[%clk 00:05:42]} {[%emt 00:00:21]} Ne4 {[%clk
00:06:54]} {[%emt 00:02:40]} 33. Neg4 {[%clk 00:05:34]} {[%emt 00:00:38]} bxc3
{[%clk 00:05:59]} {[%emt 00:01:24]} 34. bxc3 {[%clk 00:05:58]} {[%emt
00:00:06]} Qa5 {[%clk 00:05:18]} {[%emt 00:01:11]} 35. f3 {[%clk 00:05:20]}
{[%emt 00:01:08]} Nxc3 {[%clk 00:04:46]} {[%emt 00:01:02]} 36. Ra1 {[%clk
00:05:34]} {[%emt 00:00:16]} Qb6 {[%clk 00:04:33]} {[%emt 00:00:43]} 37. Bf1
{[%clk 00:04:08]} {[%emt 00:01:56]} Nb5 {[%clk 00:04:52]} {[%emt 00:00:11]} 38.
Nf6+ {[%clk 00:03:01]} {[%emt 00:01:38]} Kf7 {[%clk 00:04:03]} {[%emt
00:01:19]} 39. Nxh7 {[%clk 00:02:03]} {[%emt 00:01:28]} Rh8 {[%clk 00:03:22]}
{[%emt 00:01:11]} 40. Ng4 {[%clk 00:02:10]} {[%emt 00:00:22]} Rxh7 {[%clk
00:03:42]} {[%emt 00:00:09]} 41. Ne5+ {[%clk 00:02:01]} {[%emt 00:00:40]} Ke8
{[%clk 00:02:28]} {[%emt 00:01:43]} 42. Ng6 {[%clk 00:13:02]} {[%emt 00:19:30]}
Bc8 {[%clk 00:30:01]} {[%emt 00:02:58]} 43. Rab1 {[%clk 00:12:49]} {[%emt
00:00:43]} Bf6 {[%clk 00:25:00]} {[%emt 00:05:30]} 44. Qf5 {[%clk 00:12:10]}
{[%emt 00:01:07]} Be7 {[%clk 00:14:47]} {[%emt 00:10:45]} 45. Nxe7 {[%clk
00:10:59]} {[%emt 00:01:42]} Rxe7 {[%clk 00:15:12]} {[%emt 00:00:05]} 46. Qg6+
{[%clk 00:11:09]} {[%emt 00:00:20]} Kd7 {[%clk 00:15:12]} {[%emt 00:00:29]} 47.
Qxh6 {[%clk 00:08:59]} {[%emt 00:02:40]} Qxd4 {[%clk 00:14:45]} {[%emt
00:00:57]} 48. Qxg5 {[%clk 00:08:39]} {[%emt 00:00:50]} Nd6 {[%clk 00:14:26]}
{[%emt 00:00:49]} 49. Rbd1 {[%clk 00:07:57]} {[%emt 00:01:12]} Qf2 {[%clk
00:12:55]} {[%emt 00:02:01]} 50. Bxc4 {[%clk 00:05:59]} {[%emt 00:02:29]} Bb7
{[%clk 00:09:10]} {[%emt 00:04:15]} 51. Bd3 {[%clk 00:05:48]} {[%emt 00:00:40]}
Nf7 {[%clk 00:09:15]} {[%emt 00:00:26]} 52. Qf6 {[%clk 00:05:39]} {[%emt
00:00:37]} Nd6 {[%clk 00:06:27]} {[%emt 00:03:19]} 53. h6 {[%clk 00:03:55]}
{[%emt 00:02:15]} Ne8 {[%clk 00:06:51]} {[%emt 00:00:06]} 54. Qg5 {[%emt
00:04:56]} Bc6 {[%clk 00:02:56]} 55. Re2 {[%clk 00:03:57]} {[%emt 00:00:25]}
Qd4 {[%clk 00:03:08]} {[%emt 00:00:18]} 56. h7 {[%clk 00:03:54]} {[%emt
00:00:32]} Rxh7+ {[%clk 00:03:33]} {[%emt 00:00:06]} 57. Bxh7 {[%clk 00:02:50]}
{[%emt 00:01:34]} Qxd1+ {[%clk 00:03:58]} {[%emt 00:00:06]} 58. Kh2 {[%clk
00:03:16]} {[%emt 00:00:03]} Qxe2 {[%clk 00:04:22]} {[%emt 00:00:06]} 59. Bg6
{[%clk 00:03:45]} {[%emt 00:00:01]} Qb2 {[%clk 00:04:20]} {[%emt 00:00:31]} 60.
Qh6 {[%clk 00:03:56]} {[%emt 00:00:20]} Qe5+ {[%clk 00:04:38]} {[%emt
00:00:09]} 61. f4 {[%clk 00:04:23]} {[%emt 00:00:06]} Qd6 {[%clk 00:04:37]}
{[%emt 00:00:30]} 62. Qh8 {[%clk 00:04:29]} {[%emt 00:00:25]} Qxf4+ {[%clk
00:04:38]} {[%emt 00:00:29]} 63. Kh3 {[%clk 00:04:57]} {[%emt 00:00:03]} Nc7
{[%clk 00:04:22]} {[%emt 00:00:44]} 0-1

[Event "Deloitte NK 2021 Vrouwen"]
[Site "Hoogeveen, Netherlands"]
[Date "2021.10.20"]
[Round "4.2"]
[White "Keetman, Maaike"]
[Black "Peng, Zhaoqin"]
[Result "1-0"]
[TimeControl "90min/40moves + 30min + 30sec/move"]
[WhiteElo "2136"]
[BlackElo "2359"]

1. e4 {[%clk 01:30:57]} {[%emt 00:00:02]} c6 {[%clk 01:30:55]} {[%emt
00:00:06]} 2. Nc3 {[%clk 01:31:17]} {[%emt 00:00:09]} d5 {[%clk 01:30:23]}
{[%emt 00:01:03]} 3. Nf3 {[%clk 01:31:39]} {[%emt 00:00:07]} Nf6 {[%clk
01:30:43]} {[%emt 00:00:10]} 4. e5 {[%clk 01:31:38]} {[%emt 00:00:32]} Ne4
{[%clk 01:31:09]} {[%emt 00:00:04]} 5. Ne2 {[%clk 01:31:43]} {[%emt 00:00:24]}
Qb6 {[%clk 01:31:12]} {[%emt 00:00:28]} 6. d4 {[%clk 01:32:03]} {[%emt
00:00:10]} e6 {[%clk 01:30:41]} {[%emt 00:01:01]} 7. Ng3 {[%clk 01:30:07]}
{[%emt 00:02:26]} c5 {[%clk 01:30:39]} {[%emt 00:00:31]} 8. Bd3 {[%clk
01:29:19]} {[%emt 00:01:18]} cxd4 {[%clk 01:26:22]} {[%emt 00:04:47]} 9. Nxe4
{[%clk 01:18:45]} {[%emt 00:11:05]} dxe4 {[%clk 01:26:45]} {[%emt 00:00:06]} 10.
Bxe4 {[%clk 01:19:10]} {[%emt 00:00:05]} Bb4+ {[%clk 01:24:14]} {[%emt
00:03:01]} 11. Bd2 {[%clk 01:18:37]} {[%emt 00:01:04]} Bc5 {[%clk 01:13:08]}
{[%emt 00:11:36]} 12. O-O {[%clk 01:06:17]} {[%emt 00:12:49]} a5 {[%clk
01:09:31]} {[%emt 00:04:07]} 13. Ng5 {[%clk 00:56:49]} {[%emt 00:09:58]} Qc7
{[%clk 00:44:51]} {[%emt 00:25:11]} 14. f4 {[%clk 00:33:45]} {[%emt 00:23:33]}
g6 {[%clk 00:41:16]} {[%emt 00:04:05]} 15. Bf3 {[%clk 00:27:13]} {[%emt
00:07:03]} Bd7 {[%clk 00:25:03]} {[%emt 00:16:42]} 16. Ne4 {[%clk 00:25:00]}
{[%emt 00:02:43]} Bb5 {[%clk 00:25:13]} {[%emt 00:00:21]} 17. Nf6+ {[%clk
00:19:47]} {[%emt 00:05:42]} Kf8 {[%clk 00:16:51]} {[%emt 00:08:52]} 18. Re1
{[%clk 00:19:37]} {[%emt 00:00:41]} Nd7 {[%clk 00:14:27]} {[%emt 00:02:54]} 19.
f5 {[%clk 00:15:51]} {[%emt 00:04:16]} h6 {[%clk 00:10:08]} {[%emt 00:04:48]}
20. fxe6 {[%clk 00:14:56]} {[%emt 00:01:26]} fxe6 {[%clk 00:08:56]} {[%emt
00:01:41]} 21. Be4 {[%clk 00:10:28]} {[%emt 00:04:59]} Nxe5 {[%clk 00:08:17]}
{[%emt 00:01:09]} 22. Bf4 {[%clk 00:10:24]} {[%emt 00:00:33]} Bd6 {[%clk
00:08:05]} {[%emt 00:00:42]} 23. a4 {[%clk 00:09:06]} {[%emt 00:01:49]} Kg7
{[%clk 00:05:32]} {[%emt 00:03:03]} 24. axb5 {[%clk 00:06:47]} {[%emt
00:02:48]} Kxf6 {[%clk 00:05:57]} {[%emt 00:00:05]} 25. Bxe5+ {[%clk 00:06:55]}
{[%emt 00:00:22]} Bxe5 {[%clk 00:06:22]} {[%emt 00:00:05]} 26. Rf1+ {[%clk
00:07:13]} {[%emt 00:00:13]} Ke7 {[%clk 00:05:25]} {[%emt 00:01:27]} 27. Bxg6
{[%clk 00:07:23]} {[%emt 00:00:18]} Raf8 {[%clk 00:04:19]} {[%emt 00:01:37]} 28.
Qh5 {[%clk 00:07:19]} {[%emt 00:00:34]} Bf4 {[%clk 00:03:11]} {[%emt 00:01:38]}
29. Kh1 {[%clk 00:05:25]} {[%emt 00:02:24]} Qe5 {[%clk 00:03:02]} {[%emt
00:00:39]} 30. Qf3 {[%clk 00:03:49]} {[%emt 00:02:05]} Qc7 {[%clk 00:02:37]}
{[%emt 00:00:56]} 31. Qa3+ {[%clk 00:03:02]} {[%emt 00:01:17]} Bd6 {[%clk
00:02:33]} {[%emt 00:00:34]} 32. Qh3 {[%clk 00:03:02]} {[%emt 00:00:30]} Qc5
{[%clk 00:02:19]} {[%emt 00:00:45]} 33. Rae1 {[%clk 00:02:54]} {[%emt
00:00:37]} Qe5 {[%clk 00:02:10]} {[%emt 00:00:39]} 34. Qh4+ {[%clk 00:02:24]}
{[%emt 00:01:00]} Kd7 {[%clk 00:02:16]} {[%emt 00:00:24]} 35. Rf7+ {[%clk
00:02:40]} {[%emt 00:00:14]} Rxf7 {[%clk 00:02:27]} {[%emt 00:00:19]} 36. Bxf7
{[%clk 00:03:08]} {[%emt 00:00:02]} Qf4 {[%clk 00:01:22]} {[%emt 00:01:35]} 37.
Bxe6+ {[%clk 00:03:23]} {[%emt 00:00:15]} Kc7 {[%clk 00:01:43]} {[%emt
00:00:10]} 38. Qxf4 {[%clk 00:00:48]} {[%emt 00:03:05]} Bxf4 {[%clk 00:02:11]}
{[%emt 00:00:01]} 39. g3 {[%clk 00:00:50]} {[%emt 00:00:29]} Be3 {[%clk
00:01:53]} {[%emt 00:00:47]} 40. Rf1 {[%clk 00:00:38]} {[%emt 00:00:42]} Kd6
{[%clk 00:01:00]} {[%emt 00:01:23]} 41. Bc4 {[%clk 00:27:25]} {[%emt 00:03:42]}
Kc5 {[%clk 00:27:28]} {[%emt 00:04:03]} 42. Bd3 {[%clk 00:27:07]} {[%emt
00:00:49]} a4 {[%clk 00:24:51]} {[%emt 00:03:06]} 43. Rf5+ {[%clk 00:25:46]}
{[%emt 00:01:51]} Kb6 {[%clk 00:25:12]} {[%emt 00:00:10]} 44. Rf6+ {[%clk
00:25:26]} {[%emt 00:00:50]} Kc5 {[%clk 00:23:42]} {[%emt 00:02:00]} 45. Rf5+
{[%clk 00:19:58]} {[%emt 00:05:57]} Kb6 {[%clk 00:24:05]} {[%emt 00:00:07]} 46.
Rf1 {[%clk 00:16:58]} {[%emt 00:03:30]} Kc5 {[%clk 00:22:59]} {[%emt 00:01:36]}
47. Kg2 {[%clk 00:15:41]} {[%emt 00:01:47]} Rd8 {[%clk 00:20:49]} {[%emt
00:02:39]} 48. h4 {[%clk 00:13:55]} {[%emt 00:02:17]} b6 {[%clk 00:17:56]}
{[%emt 00:03:24]} 49. g4 {[%clk 00:07:58]} {[%emt 00:06:27]} Rg8 {[%clk
00:13:10]} {[%emt 00:05:15]} 50. Kg3 {[%clk 00:08:10]} {[%emt 00:00:17]} Rg7
{[%clk 00:13:29]} {[%emt 00:00:12]} 51. Rf8 {[%clk 00:06:20]} {[%emt 00:02:20]}
Rc7 {[%clk 00:07:49]} {[%emt 00:06:10]} 52. g5 {[%clk 00:05:55]} {[%emt
00:00:55]} hxg5 {[%clk 00:07:02]} {[%emt 00:01:17]} 53. hxg5 {[%clk 00:06:23]}
{[%emt 00:00:01]} Rg7 {[%clk 00:01:56]} {[%emt 00:05:37]} 54. g6 {[%clk
00:06:46]} {[%emt 00:00:07]} Bc1 {[%clk 00:02:17]} {[%emt 00:00:09]} 55. Rc8+
{[%clk 00:04:19]} {[%emt 00:02:57]} Kb4 {[%clk 00:02:24]} {[%emt 00:00:23]} 56.
Rc4+ {[%clk 00:04:31]} {[%emt 00:00:18]} Kxb5 {[%clk 00:01:58]} {[%emt
00:00:55]} 57. Rc7+ {[%clk 00:04:57]} {[%emt 00:00:05]} 1-0

[Event "Deloitte NK 2021 Vrouwen"]
[Site "Hoogeveen, Netherlands"]
[Date "2021.10.20"]
[Round "4.3"]
[White "Roebers, Eline"]
[Black "Haast, Anne"]
[Result "0-1"]
[TimeControl "90min/40moves + 30min + 30sec/move"]
[WhiteElo "2297"]
[BlackElo "2318"]

1. e4 {[%clk 01:30:57]} {[%emt 00:00:02]} c5 {[%clk 01:30:46]} {[%emt
00:00:15]} 2. Nf3 {[%clk 01:31:23]} {[%emt 00:00:04]} e6 {[%clk 01:30:53]}
{[%emt 00:00:22]} 3. d4 {[%clk 01:31:48]} {[%emt 00:00:05]} cxd4 {[%clk
01:31:01]} {[%emt 00:00:23]} 4. Nxd4 {[%clk 01:32:13]} {[%emt 00:00:05]} Nc6
{[%clk 01:31:00]} {[%emt 00:00:31]} 5. Nc3 {[%clk 01:32:21]} {[%emt 00:00:22]}
a6 {[%clk 01:29:58]} {[%emt 00:01:32]} 6. Bf4 {[%clk 01:32:31]} {[%emt
00:00:19]} d6 {[%clk 01:25:52]} {[%emt 00:04:36]} 7. Bg3 {[%clk 01:31:59]}
{[%emt 00:01:02]} Nxd4 {[%clk 01:05:53]} {[%emt 00:20:29]} 8. Qxd4 {[%clk
01:32:17]} {[%emt 00:00:12]} e5 {[%clk 01:06:03]} {[%emt 00:00:21]} 9. Qe3
{[%clk 01:32:27]} {[%emt 00:00:20]} h5 {[%clk 01:03:52]} {[%emt 00:02:40]} 10.
O-O-O {[%clk 01:29:27]} {[%emt 00:03:29]} Qa5 {[%clk 00:59:47]} {[%emt
00:04:36]} 11. f3 {[%clk 01:21:12]} {[%emt 00:08:45]} Be6 {[%clk 00:57:42]}
{[%emt 00:02:36]} 12. Kb1 {[%clk 01:19:22]} {[%emt 00:02:20]} Rc8 {[%clk
00:52:43]} {[%emt 00:05:29]} 13. Nd5 {[%clk 01:16:06]} {[%emt 00:03:46]} Qa4
{[%clk 00:39:43]} {[%emt 00:13:30]} 14. b3 {[%clk 00:55:24]} {[%emt 00:21:11]}
Qc6 {[%clk 00:39:48]} {[%emt 00:00:25]} 15. c4 {[%clk 00:55:39]} {[%emt
00:00:15]} Ne7 {[%clk 00:34:30]} {[%emt 00:05:48]} 16. f4 {[%clk 00:44:58]}
{[%emt 00:11:10]} h4 {[%clk 00:23:34]} {[%emt 00:11:28]} 17. Bf2 {[%clk
00:42:33]} {[%emt 00:02:54]} exf4 {[%clk 00:22:45]} {[%emt 00:01:19]} 18. Nxf4
{[%clk 00:42:17]} {[%emt 00:00:46]} Ng6 {[%clk 00:22:51]} {[%emt 00:00:24]} 19.
Nxg6 {[%clk 00:27:28]} {[%emt 00:15:18]} fxg6 {[%clk 00:23:20]} {[%emt
00:00:02]} 20. Bd3 {[%clk 00:23:58]} {[%emt 00:04:00]} Be7 {[%clk 00:18:14]}
{[%emt 00:05:36]} 21. e5 {[%clk 00:23:19]} {[%emt 00:01:09]} O-O {[%clk
00:18:36]} {[%emt 00:00:09]} 22. exd6 {[%clk 00:20:33]} {[%emt 00:03:15]} Qxd6
{[%clk 00:19:04]} {[%emt 00:00:02]} 23. Rhe1 {[%clk 00:19:02]} {[%emt
00:02:00]} Bg4 {[%clk 00:18:22]} {[%emt 00:01:13]} 24. Rd2 {[%clk 00:15:11]}
{[%emt 00:04:21]} Qb4 {[%clk 00:18:24]} {[%emt 00:00:28]} 25. Kc2 {[%clk
00:09:03]} {[%emt 00:06:37]} Bc5 {[%clk 00:15:05]} {[%emt 00:03:50]} 26. Qg5
{[%clk 00:07:45]} {[%emt 00:01:48]} Rxf2 {[%clk 00:12:31]} {[%emt 00:03:04]} 27.
Rxf2 {[%clk 00:06:59]} {[%emt 00:01:16]} Qxe1 {[%clk 00:12:31]} {[%emt
00:00:31]} 28. Rf1 {[%clk 00:06:07]} {[%emt 00:01:21]} Qe6 {[%clk 00:09:09]}
{[%emt 00:03:52]} 0-1